fUSD/lending_fUSD_20250502
["ID","MTS","AMOUNT","RATE_DAILY","PERIOD"]
[359594796,1746173442820,-453.15,0.00019825,2]
[359594797,1746173442830,-478.71395855,0.00019825,2]
[359594798,1746173442840,-516.29378622,0.00019825,2]
[359594799,1746173442850,-812.16,0.00019825,2]
[359594800,1746173442860,-478.36009512,0.00019825,2]
[359594801,1746173442870,-573.0,0.00019825,2]
[359594802,1746173442879,-519.01346839,0.00019825,2]
[359594804,1746173442889,-796.76,0.00019825,2]
[359594805,1746173442899,-450.0,0.00019825,2]
[359594806,1746173442908,-1001.15,0.00019825,2]
[359594807,1746173442918,-525.60899567,0.00019825,2]
[359594808,1746173442927,-450.0,0.00019825,2]
[359594809,1746173442938,-463.43,0.00019825,2]
[359594810,1746173442947,-450.0,0.00019825,2]
[359594812,1746173442957,-450.0,0.00019825,2]
[359594813,1746173442967,-450.0,0.00019825,2]
[359594814,1746173442976,-450.0,0.00019825,2]
[359594815,1746173442986,-471.51654423,0.00019825,2]
[359594816,1746173442995,-450.0,0.00019825,2]
[359594817,1746173443005,-450.0,0.00019825,2]
[359594818,1746173443015,-450.0,0.00019825,2]
[359594819,1746173443024,-478.29285911,0.00019825,2]
[359594820,1746173443033,-2527.85,0.00019825,2]
[359594821,1746173443042,-454.39,0.00019825,2]
[359594823,1746173443052,-450.0,0.00019825,2]
[359594825,1746173443061,-520.69423057,0.00019825,2]
[359594827,1746173443071,-450.0,0.00019825,2]
[359594829,1746173443080,-595.36081012,0.00019825,2]
[359594831,1746173443090,-828.73,0.00019825,2]
[359594832,1746173443099,-481.36260393,0.00019825,2]
[359594833,1746173443108,-450.0,0.00019825,2]
[359594834,1746173443118,-450.0,0.00019825,2]
[359594835,1746173443127,-541.66951545,0.00019825,2]
[359594836,1746173443137,-2142.66,0.00019825,2]
[359594837,1746173443147,-556.49207029,0.00019825,2]
[359594838,1746173443156,-450.0,0.00019825,2]
[359594839,1746173443165,-450.0,0.00019825,2]
[359594840,1746173443175,-450.0,0.00019825,2]
[359594841,1746173443184,-1398.93,0.00019825,2]
[359594842,1746173443196,-450.0,0.00019825,2]
[359594843,1746173443206,-622.99,0.00019825,2]
[359594844,1746173443216,-1622.76,0.00019825,2]
[359594845,1746173443226,-552.58658292,0.00019825,2]
[359594846,1746173443236,-450.0,0.00019825,2]
[359594847,1746173443245,-1158.47,0.00019825,2]
[359594848,1746173443255,-478.65,0.00019825,2]
[359594849,1746173443265,-470.72173078,0.00019825,2]
[359594850,1746173443274,-450.0,0.00019825,2]
[359594851,1746173443283,-912.73,0.00019825,2]
[359594852,1746173443293,-450.0,0.00019825,2]
[359594853,1746173443302,-450.0,0.00019825,2]
[359594854,1746173443315,-450.0,0.00019825,2]
[359594855,1746173443324,-471.39131254,0.00019825,2]
[359594856,1746173443333,-475.24210284,0.00019825,2]
[359594857,1746173443343,-450.0,0.00019825,2]
[359594858,1746173443353,-456.54,0.00019825,2]
[359594859,1746173443363,-450.0,0.00019825,2]
[359594860,1746173443372,-450.0,0.00019825,2]
[359594861,1746173443383,-3272.12,0.00019825,2]
[359594862,1746173443393,-579.65568725,0.00019825,2]
[359594863,1746173443403,-619.88,0.00019825,2]
[359594864,1746173443413,-450.0,0.00019825,2]
[359594865,1746173443422,-450.0,0.00019825,2]
[359594866,1746173443432,-481.77396082,0.00019825,2]
[359594867,1746173443445,-4052.9,0.00019825,2]
[359594868,1746173443455,-1063.92,0.00019825,2]
[359594869,1746173443464,-964.98,0.00019825,2]
[359594870,1746173443474,-455.69,0.00019825,2]
[359594871,1746173443483,-865.99,0.00019825,2]
[359594872,1746173443493,-450.0,0.00019825,2]
[359594873,1746173443686,-450.0,0.00019825,2]
[359594874,1746173443696,-450.0,0.00019825,2]
[359594875,1746173443705,-172.94262954,0.00019825,2]
[359594876,1746173443715,-450.0,0.00019825,2]
[359594877,1746173443724,-1441.64,0.00019825,2]
[359594878,1746173443734,-937.1,0.00019825,2]
[359594879,1746173443743,-670.36,0.00019825,2]
[359594880,1746173443753,-474.85670226,0.00019825,2]
[359594881,1746173443762,-850.47,0.00019825,2]
[359594882,1746173443772,-450.0,0.00019825,2]
[359594883,1746173443782,-672.29,0.00019825,2]
[359594884,1746173443792,-918.09,0.00019825,2]
[359594885,1746173443801,-1168.62,0.00019825,2]
[359594886,1746173443811,-483.44313905,0.00019825,2]
[359594887,1746173443820,-332.7319738,0.00019825,2]
[359594888,1746173443830,-450.0,0.00019825,2]
[359594889,1746173443840,-950.77,0.00019825,2]
[359594890,1746173443849,-450.0,0.00019825,2]
[359594891,1746173443859,-588.59856865,0.00019825,2]
[359594892,1746173443868,-450.0,0.00019825,2]
[359594893,1746173443878,-476.27313817,0.00019825,2]
[359594894,1746173443888,-450.0,0.00019825,2]
[359594895,1746173443897,-450.0,0.00019825,2]
[359594896,1746173443907,-513.44314948,0.00019825,2]
[359594897,1746173443917,-450.0,0.00019825,2]
[359594898,1746173443926,-450.0,0.00019825,2]
[359594899,1746173443936,-655.67,0.00019825,2]
[359594900,1746173443946,-478.15755726,0.00019825,2]
[359594901,1746173443957,-545.17390461,0.00019825,2]
[359594902,1746173443966,-510.67624273,0.00019825,2]
[359594903,1746173443976,-450.0,0.00019825,2]
[359594904,1746173443986,-522.07140595,0.00019825,2]
[359594905,1746173443995,-557.66355342,0.00019825,2]
[359594906,1746173444005,-1013.61,0.00019825,2]
[359594907,1746173444015,-476.4633383,0.00019825,2]
[359594908,1746173444024,-464.6,0.00019825,2]
[359594909,1746173444034,-487.21528465,0.00019825,2]
[359594910,1746173444043,-1065.26,0.00019825,2]
[359594911,1746173444052,-543.58999611,0.00019825,2]
[359594912,1746173444062,-450.0,0.00019825,2]
[359594913,1746173444071,-450.0,0.00019825,2]
[359594914,1746173444081,-505.69879966,0.00019825,2]
[359594915,1746173444091,-450.0,0.00019825,2]
[359594916,1746173444100,-2975.11,0.00019825,2]
[359594917,1746173444110,-471.77946675,0.00019825,2]
[359594918,1746173444120,-624.62,0.00019825,2]
[359594919,1746173444130,-555.12,0.00019825,2]
[359594920,1746173444140,-450.0,0.00019825,2]
[359594921,1746173444150,-528.0005807,0.00019825,2]
[359594922,1746173444159,-475.9586103,0.00019825,2]
[359594923,1746173444169,-568.41,0.00019825,2]
[359594924,1746173444179,-474.73630796,0.00019825,2]
[359594925,1746173444188,-450.0,0.00019825,2]
[359594926,1746173444198,-523.25,0.00019825,2]
[359594927,1746173444208,-1596.7,0.00019825,2]
[359594928,1746173444217,-485.96661095,0.00019825,2]
[359594929,1746173444227,-905.99,0.00019825,2]
[359594930,1746173444236,-450.0,0.00019825,2]
[359594931,1746173444246,-455.31,0.00019825,2]
[359594932,1746173444255,-450.0,0.00019825,2]
[359594933,1746173444266,-970.08,0.00019825,2]
[359594934,1746173444275,-500.0,0.00019825,2]
[359594935,1746173444285,-450.0,0.00019825,2]
[359594936,1746173444295,-450.0,0.00019825,2]
[359594937,1746173444306,-568.33862263,0.00019825,2]
[359594938,1746173444318,-548.15,0.00019825,2]
[359594939,1746173444328,-526.95490804,0.00019825,2]
[359594940,1746173444338,-484.82103318,0.00019825,2]
[359594941,1746173444348,-475.92393356,0.00019825,2]
[359594942,1746173444359,-471.05231591,0.00019825,2]
[359594943,1746173444368,-470.0,0.00019825,2]
[359594944,1746173444378,-283.90094239,0.00019826,2]
[359594945,1746173444389,-533.76899943,0.00019826,2]
[359594946,1746173444400,-450.0,0.00019826,2]
[359594947,1746173444409,-432.90552411,0.00019826,2]
[359594948,1746173444419,-450.0,0.00019826,2]
[359594949,1746173444428,-450.0,0.00019826,2]
[359594950,1746173444438,-365.249561,0.00019826,2]
[359594951,1746173444448,-500.0,0.00019826,2]
[359594952,1746173444457,-450.0,0.00019826,2]
[359594953,1746173444467,-450.0,0.00019826,2]
[359594954,1746173444476,-450.0,0.00019826,2]
[359594955,1746173444486,-450.0,0.00019826,2]
[359594956,1746173444496,-450.0,0.00019826,2]
[359594957,1746173444505,-450.0,0.00019826,2]
[359594958,1746173444515,-527.98627395,0.00019826,2]
[359594959,1746173444524,-450.0,0.00019826,2]
[359594960,1746173444534,-450.0,0.00019826,2]
[359594961,1746173444544,-519.7402053,0.00019826,2]
[359594962,1746173444554,-450.0,0.00019826,2]
[359594963,1746173444563,-450.0,0.00019826,2]
[359594964,1746173444573,-450.0,0.00019826,2]
[359594965,1746173444582,-500.0,0.00019826,2]
[359594966,1746173444592,-552.30096776,0.00019826,2]
[359594967,1746173444604,-450.0,0.00019826,2]
[359594968,1746173444614,-540.37,0.00019826,2]
[359594969,1746173444623,-450.0,0.00019826,2]
[359594970,1746173444633,-1366.97,0.00019826,2]
[359594971,1746173444643,-531.75,0.00019826,2]
[359594972,1746173444652,-450.0,0.00019826,2]
[359594973,1746173444661,-479.20352983,0.00019826,2]
[359594974,1746173444672,-587.9,0.00019826,2]
[359594975,1746173444683,-450.0,0.00019826,2]
[359594976,1746173444694,-450.0,0.00019826,2]
[359594977,1746173444703,-478.6696197,0.00019826,2]
[359594978,1746173444713,-450.0,0.00019826,2]
[359594979,1746173444723,-450.0,0.00019826,2]
[359594980,1746173444734,-483.56461967,0.00019826,2]
[359594981,1746173444744,-450.0,0.00019826,2]
[359594982,1746173444754,-450.0,0.00019826,2]
[359594983,1746173444764,-471.7155258,0.00019826,2]
[359594984,1746173444775,-450.0,0.00019826,2]
[359594985,1746173444786,-477.69010555,0.00019826,2]
[359594986,1746173444796,-968.25,0.00019826,2]
[359594987,1746173444805,-472.69502675,0.00019826,2]
[359594988,1746173444815,-450.0,0.00019826,2]
[359594989,1746173444824,-450.0,0.00019826,2]
[359594990,1746173444834,-450.0,0.00019826,2]
[359594991,1746173444843,-450.0,0.00019826,2]
[359594992,1746173444854,-450.0,0.00019826,2]
[359594993,1746173444863,-450.0,0.00019826,2]
[359594994,1746173444873,-450.0,0.00019826,2]
[359594995,1746173444887,-939.17,0.00019826,2]
[359594996,1746173444898,-860.98,0.00019826,2]
[359594997,1746173444908,-240.93019251,0.00019826,2]
[359594998,1746173444919,-450.0,0.00019826,2]
[359594999,1746173444929,-450.0,0.00019826,2]
[359595000,1746173444940,-388.30674961,0.00019826,2]
[359595001,1746173444950,-564.89707459,0.00019826,2]
[359595002,1746173444961,-479.60042015,0.00019826,2]
[359595003,1746173444971,-475.04609516,0.00019826,2]
[359595004,1746173444983,-450.0,0.00019826,2]
[359595005,1746173444994,-533.95367948,0.00019826,2]
[359595006,1746173445004,-978.9,0.00019826,2]
[359595007,1746173445014,-450.0,0.00019826,2]
[359595008,1746173445025,-483.53289868,0.00019826,2]
[359595009,1746173445035,-498.21,0.00019826,2]
[359595010,1746173445045,-450.0,0.00019826,2]
[359595011,1746173445055,-450.0,0.00019826,2]
[359595012,1746173445065,-542.58258373,0.00019826,2]
[359595014,1746173445076,-546.31801328,0.00019826,2]
[359595016,1746173445086,-313.16950704,0.00019826,2]
[359595018,1746173445096,-549.1,0.00019826,2]
[359595020,1746173445106,-185.50934107,0.00019826,2]
[359595022,1746173445117,-472.95,0.00019826,2]
[359595024,1746173445127,-450.0,0.00019826,2]
[359595026,1746173445137,-450.0,0.00019826,2]
[359595028,1746173445151,-907.93,0.00019826,2]
[359595031,1746173445162,-491.84,0.00019826,2]
[359595033,1746173445172,-450.0,0.00019826,2]
[359595035,1746173445183,-450.0,0.00019826,2]
[359595037,1746173445194,-450.0,0.00019826,2]
[359595039,1746173445204,-450.0,0.00019826,2]
[359595041,1746173445214,-450.0,0.00019826,2]
[359595043,1746173445225,-450.0,0.00019826,2]
[359595045,1746173445235,-621.63,0.00019826,2]
[359595047,1746173445246,-1949.4,0.00019826,2]
[359595048,1746173445256,-450.0,0.00019826,2]
[359595049,1746173445267,-450.0,0.00019826,2]
[359595050,1746173445278,-450.0,0.00019826,2]
[359595051,1746173445288,-479.51634144,0.00019826,2]
[359595052,1746173445298,-450.0,0.00019826,2]
[359595053,1746173445312,-450.0,0.00019826,2]
[359595054,1746173445322,-450.0,0.00019826,2]
[359595055,1746173445333,-450.0,0.00019826,2]
[359595056,1746173445343,-1083.63,0.00019826,2]
[359595057,1746173445353,-472.61464909,0.00019826,2]
[359595058,1746173445363,-472.09187966,0.00019826,2]
[359595059,1746173445374,-450.0,0.00019826,2]
[359595060,1746173445386,-500.0,0.00019826,2]
[359595061,1746173445397,-500.0,0.00019826,2]
[359595062,1746173445408,-500.0,0.00019826,2]
[359595064,1746173445418,-450.0,0.00019826,2]
[359595065,1746173445431,-569.32,0.00019826,2]
[359595066,1746173445441,-450.0,0.00019826,2]
[359595067,1746173445451,-450.0,0.00019826,2]
[359595068,1746173445461,-470.50571725,0.00019826,2]
[359595069,1746173445473,-450.0,0.00019826,2]
[359595070,1746173445483,-450.0,0.00019826,2]
[359595072,1746173445493,-450.0,0.00019826,2]
[359595074,1746173445504,-472.79538287,0.00019826,2]
[359595076,1746173445514,-450.0,0.00019826,2]
[359595078,1746173445524,-450.0,0.00019826,2]
[359595081,1746173445534,-721.05,0.00019826,2]
[359595083,1746173445548,-450.0,0.00019826,2]
[359595085,1746173445558,-450.0,0.00019826,2]
[359595087,1746173445568,-450.0,0.00019826,2]
[359595089,1746173445578,-498.49,0.00019826,2]
[359595091,1746173445588,-488.63,0.00019826,2]
[359595093,1746173445597,-522.13552727,0.00019826,2]
[359595095,1746173445608,-450.0,0.00019826,2]
[359595097,1746173445617,-450.0,0.00019826,2]
[359595099,1746173445627,-554.61,0.00019826,2]
[359595101,1746173445638,-535.04699561,0.00019826,2]
[359595103,1746173445648,-450.0,0.00019826,2]
[359595105,1746173445658,-474.95294266,0.00019826,2]
[359595107,1746173445668,-450.0,0.00019826,2]
[359595109,1746173445678,-487.47,0.00019826,2]
[359595112,1746173445688,-1072.26,0.00019826,2]
[359595114,1746173445699,-718.57,0.00019826,2]
[359595116,1746173445709,-357.73324974,0.00019826,2]
[359595118,1746173445719,-450.0,0.00019826,2]
[359595120,1746173445729,-450.0,0.00019826,2]
[359595122,1746173445739,-450.0,0.00019826,2]
[359595124,1746173445748,-450.0,0.00019826,2]
[359595126,1746173445758,-1223.35,0.00019826,2]
[359595127,1746173445768,-450.0,0.00019826,2]
[359595128,1746173445778,-450.0,0.00019826,2]
[359595129,1746173445788,-450.0,0.00019826,2]
[359595130,1746173445798,-450.0,0.00019826,2]
[359595131,1746173445808,-450.0,0.00019826,2]
[359595132,1746173445818,-450.0,0.00019826,2]
[359595133,1746173445828,-881.7,0.00019826,2]
[359595134,1746173445838,-450.0,0.00019826,2]
[359595135,1746173445848,-747.37,0.00019826,2]
[359595136,1746173445858,-483.31,0.00019826,2]
[359595137,1746173445868,-747.37,0.00019826,2]
[359595138,1746173445878,-747.37,0.00019826,2]
[359595139,1746173445888,-450.0,0.00019826,2]
[359595140,1746173445898,-450.0,0.00019826,2]
[359595141,1746173445908,-450.0,0.00019826,2]
[359595142,1746173445919,-450.0,0.00019826,2]
[359595143,1746173445929,-450.0,0.00019826,2]
[359595144,1746173445940,-450.0,0.00019826,2]
[359595146,1746173445950,-450.0,0.00019826,2]
[359595148,1746173445960,-450.0,0.00019826,2]
[359595149,1746173445970,-517.03,0.00019826,2]
[359595150,1746173445981,-539.31,0.00019826,2]
[359595151,1746173445991,-450.0,0.00019826,2]
[359595152,1746173446001,-500.0,0.00019826,2]
[359595153,1746173446011,-500.0,0.00019826,2]
[359595154,1746173446021,-500.0,0.00019826,2]
[359595155,1746173446032,-450.0,0.00019826,2]
[359595156,1746173446043,-450.0,0.00019826,2]
[359595157,1746173446053,-500.0,0.00019826,2]
[359595158,1746173446063,-450.0,0.00019826,2]
[359595159,1746173446073,-914.54,0.00019826,2]
[359595160,1746173446083,-768.15,0.00019826,2]
[359595161,1746173446093,-450.0,0.00019826,2]
[359595162,1746173446103,-354.23659191,0.00019826,2]
[359595163,1746173446113,-1107.82,0.00019826,2]
[359595164,1746173446124,-540.87,0.00019826,2]
[359595165,1746173446134,-465.49,0.00019826,2]
[359595166,1746173446144,-450.0,0.00019826,2]
[359595167,1746173446155,-1488.59,0.00019826,2]
[359595168,1746173446165,-450.0,0.00019826,2]
[359595169,1746173446175,-450.0,0.00019826,2]
[359595170,1746173446185,-450.0,0.00019826,2]
[359595171,1746173446285,-450.0,0.00019826,2]
[359595172,1746173446295,-450.0,0.00019826,2]
[359595173,1746173446309,-450.0,0.00019826,2]
[359595174,1746173446318,-450.0,0.00019826,2]
[359595175,1746173446327,-450.0,0.00019826,2]
[359595176,1746173446337,-450.0,0.00019826,2]
[359595177,1746173446348,-450.0,0.00019826,2]
[359595178,1746173446357,-1877.79,0.00019826,2]
[359595179,1746173446367,-1222.25,0.00019826,2]
[359595180,1746173446376,-499.04539545,0.00019826,2]
[359595181,1746173446388,-450.0,0.00019826,2]
[359595182,1746173446398,-450.0,0.00019826,2]
[359595183,1746173446407,-844.21,0.00019826,2]
[359595184,1746173446417,-450.0,0.00019826,2]
[359595185,1746173446427,-450.0,0.00019826,2]
[359595186,1746173446436,-1252.8,0.00019826,2]
[359595187,1746173446446,-849.09,0.00019826,2]
[359595188,1746173446456,-450.0,0.00019826,2]
[359595189,1746173446466,-548.31,0.00019826,2]
[359595190,1746173446475,-450.0,0.00019826,2]
[359595191,1746173446484,-450.0,0.00019826,2]
[359595192,1746173446494,-450.0,0.00019826,2]
[359595193,1746173446503,-450.0,0.00019826,2]
[359595194,1746173446513,-2238.27,0.00019826,2]
[359595195,1746173446523,-1093.7,0.00019826,2]
[359595196,1746173446532,-450.0,0.00019826,2]
[359595197,1746173446542,-300.0,0.00019826,2]
[359595198,1746173446552,-450.0,0.00019826,2]
[359595199,1746173446562,-450.0,0.00019826,2]
[359595200,1746173446571,-939.86,0.00019826,2]
[359595201,1746173446581,-450.0,0.00019826,2]
[359595202,1746173446590,-798.96,0.00019826,2]
[359595203,1746173446600,-1805.53,0.00019826,2]
[359595204,1746173446610,-747.04,0.00019826,2]
[359595205,1746173446619,-974.59,0.00019826,2]
[359595206,1746173446629,-450.0,0.00019826,2]
[359595207,1746173446639,-450.0,0.00019826,2]
[359595208,1746173446649,-450.0,0.00019826,2]
[359595209,1746173446659,-450.0,0.00019826,2]
[359595210,1746173446668,-450.0,0.00019826,2]
[359595211,1746173446678,-1369.57,0.00019826,2]
[359595212,1746173446688,-480.78,0.00019826,2]
[359595213,1746173446698,-450.0,0.00019826,2]
[359595214,1746173446707,-481.72,0.00019826,2]
[359595215,1746173446717,-450.0,0.00019826,2]
[359595216,1746173446726,-450.0,0.00019826,2]
[359595217,1746173446735,-450.0,0.00019826,2]
[359595218,1746173446745,-450.0,0.00019826,2]
[359595219,1746173446754,-450.0,0.00019826,2]
[359595220,1746173446764,-457.37785718,0.00019826,2]
[359595221,1746173446774,-450.0,0.00019826,2]
[359595222,1746173446783,-450.0,0.00019826,2]
[359595223,1746173446793,-450.0,0.00019826,2]
[359595224,1746173446803,-450.0,0.00019826,2]
[359595225,1746173446812,-450.0,0.00019826,2]
[359595226,1746173446822,-450.0,0.00019826,2]
[359595227,1746173446831,-450.0,0.00019826,2]
[359595228,1746173446841,-497.91,0.00019826,2]
[359595229,1746173446850,-450.0,0.00019826,2]
[359595230,1746173446859,-450.0,0.00019826,2]
[359595231,1746173446869,-555.18,0.00019826,2]
[359595232,1746173446879,-450.0,0.00019826,2]
[359595233,1746173446888,-450.0,0.00019826,2]
[359595234,1746173446898,-450.0,0.00019826,2]
[359595235,1746173446907,-498.14,0.00019826,2]
[359595236,1746173446917,-324.92097776,0.00019826,2]
[359595237,1746173446926,-1301.49,0.00019826,2]
[359595238,1746173446936,-4079.11,0.00019826,2]
[359595239,1746173446945,-450.0,0.00019826,2]
[359595240,1746173446955,-450.0,0.00019826,2]
[359595241,1746173446965,-500.0,0.00019826,2]
[359595242,1746173446974,-1677.79,0.00019826,2]
[359595243,1746173446984,-450.0,0.00019826,2]
[359595244,1746173446993,-450.0,0.00019826,2]
[359595245,1746173447004,-450.0,0.00019826,2]
[359595246,1746173447014,-571.66696018,0.00019826,2]
[359595247,1746173447024,-450.0,0.00019826,2]
[359595248,1746173447034,-450.0,0.00019826,2]
[359595249,1746173447044,-450.0,0.00019826,2]
[359595250,1746173447054,-3436.07,0.00019826,2]
[359595251,1746173447063,-450.0,0.00019826,2]
[359595252,1746173447072,-493.81,0.00019826,2]
[359595253,1746173447082,-745.03,0.00019826,2]
[359595254,1746173447091,-450.0,0.00019826,2]
[359595256,1746173447100,-450.0,0.00019826,2]
[359595258,1746173447110,-450.0,0.00019826,2]
[359595260,1746173447119,-450.0,0.00019826,2]
[359595262,1746173447128,-599.84,0.00019826,2]
[359595263,1746173447138,-450.0,0.00019826,2]
[359595264,1746173447147,-450.0,0.00019826,2]
[359595265,1746173447157,-590.37,0.00019826,2]
[359595266,1746173447166,-198.04898131,0.00019826,2]
[359595267,1746173447175,-450.0,0.00019826,2]
[359595268,1746173447183,-371.37004801,0.00019826,2]
[359595269,1746173447194,-927.76,0.00019826,2]
[359595270,1746173447203,-450.0,0.00019826,2]
[359595271,1746173447212,-450.0,0.00019826,2]
[359595272,1746173447222,-3711.88,0.00019826,2]
[359595273,1746173447231,-450.0,0.00019826,2]
[359595274,1746173447241,-450.0,0.00019826,2]
[359595275,1746173447250,-1006.77,0.00019826,2]
[359595276,1746173447259,-500.0,0.00019826,2]
[359595277,1746173447268,-450.0,0.00019826,2]
[359595278,1746173447277,-500.0,0.00019826,2]
[359595279,1746173447286,-661.55,0.00019826,2]
[359595280,1746173447295,-500.0,0.00019826,2]
[359595281,1746173447305,-450.0,0.00019826,2]
[359595282,1746173447316,-450.0,0.00019826,2]
[359595283,1746173447324,-450.0,0.00019826,2]
[359595284,1746173447334,-506.96314691,0.00019826,2]
[359595285,1746173447343,-756.82,0.00019826,2]
[359595286,1746173447352,-450.0,0.00019826,2]
[359595287,1746173447361,-403.85555834,0.00019826,2]
[359595288,1746173447370,-1159.27,0.00019826,2]
[359595289,1746173447380,-450.0,0.00019826,2]
[359595290,1746173447390,-1560.66,0.00019826,2]
[359595291,1746173447399,-450.0,0.00019826,2]
[359595292,1746173447412,-450.0,0.00019826,2]
[359595293,1746173447422,-450.0,0.00019826,2]
[359595294,1746173447431,-450.0,0.00019826,2]
[359595295,1746173447442,-450.0,0.00019826,2]
[359595296,1746173447451,-605.95,0.00019826,2]
[359595297,1746173447461,-450.0,0.00019826,2]
[359595298,1746173447471,-1090.99,0.00019826,2]
[359595299,1746173447480,-450.0,0.00019826,2]
[359595300,1746173447490,-738.12,0.00019826,2]
[359595301,1746173447499,-450.0,0.00019826,2]
[359595302,1746173447510,-1433.07,0.00019826,2]
[359595303,1746173447519,-1781.69,0.00019826,2]
[359595304,1746173447529,-163.93,0.00019826,2]
[359595305,1746173447540,-450.0,0.00019826,2]
[359595306,1746173447551,-1205.15,0.00019826,2]
[359595307,1746173447560,-450.0,0.00019826,2]
[359595308,1746173447570,-785.27,0.00019826,2]
[359595309,1746173447580,-450.0,0.00019826,2]
[359595310,1746173447590,-608.73,0.00019826,2]
[359595311,1746173447600,-2016.95,0.00019826,2]
[359595312,1746173447609,-450.0,0.00019826,2]
[359595313,1746173447618,-450.0,0.00019826,2]
[359595314,1746173447628,-1048.41,0.00019826,2]
[359595315,1746173447637,-450.0,0.00019826,2]
[359595316,1746173447647,-450.0,0.00019826,2]
[359595317,1746173447656,-705.75,0.00019826,2]
[359595318,1746173447665,-450.0,0.00019826,2]
[359595319,1746173447674,-1335.89,0.00019826,2]
[359595320,1746173447684,-450.0,0.00019826,2]
[359595321,1746173447694,-537.38,0.00019826,2]
[359595322,1746173447703,-450.0,0.00019826,2]
[359595323,1746173447712,-450.0,0.00019826,2]
[359595324,1746173447721,-450.0,0.00019826,2]
[359595325,1746173447730,-450.0,0.00019826,2]
[359595326,1746173447740,-1017.69,0.00019826,2]
[359595327,1746173447750,-450.0,0.00019826,2]
[359595328,1746173447759,-1132.15,0.00019826,2]
[359595329,1746173447769,-7044.4,0.00019826,2]
[359595330,1746173447778,-1034.05,0.00019826,2]
[359595331,1746173447788,-450.0,0.00019826,2]
[359595332,1746173447797,-594.25,0.00019826,2]
[359595333,1746173447807,-4275.86,0.00019826,2]
[359595334,1746173447816,-1102.13,0.00019826,2]
[359595335,1746173447825,-450.0,0.00019826,2]
[359595336,1746173447835,-1651.92,0.00019826,2]
[359595337,1746173447844,-614.62,0.00019826,2]
[359595338,1746173447854,-1289.45,0.00019826,2]
[359595339,1746173447864,-1010.33,0.00019826,2]
[359595340,1746173447874,-450.0,0.00019826,2]
[359595341,1746173447883,-818.28,0.00019826,2]
[359595342,1746173447893,-880.88,0.00019826,2]
[359595343,1746173447903,-450.0,0.00019826,2]
[359595344,1746173447912,-3305.17,0.00019826,2]
[359595345,1746173447922,-1776.06,0.00019826,2]
[359595346,1746173447931,-452.63963356,0.00019826,2]
[359595347,1746173447942,-8330.31,0.00019826,2]
[359595348,1746173447952,-617.17,0.00019826,2]
[359595349,1746173447962,-2890.8,0.00019826,2]
[359595350,1746173447971,-9291.39,0.00019826,2]
[359595351,1746173447981,-9146.05,0.00019826,2]
[359595352,1746173447991,-1172.65,0.00019826,2]
[359595353,1746173448001,-1224.67,0.00019826,2]
[359595354,1746173448012,-500.0,0.00019827,2]
[359595355,1746173448022,-500.0,0.00019827,2]
[359595356,1746173448031,-1335.89,0.00019827,2]